[Event "Titled Tuesday Blitz April 4 Early 2023"]
[White "Molina, Roberto Junio Brito"]
[Black "Mamedov, Rauf"]
[WhiteFideId "2109450"]
[BlackFideId "13401653"]
[WhiteElo "2376"]
[BlackElo "2635"]
[Result "0-1"]
[Round "04"]
[TimeControl "180+2"]
[Date "2023.04.04"]
[WhiteClock "0:00:39"]
[BlackClock "0:00:34"]

1. d4 {[%clk 0:03:00]}  Nf6 {[%clk 0:02:59]} 2. Nf3 {[%clk 0:03:00]}  g6 {[%clk 0:02:59]} 3. e3 {[%clk 0:03:01]}  Bg7 {[%clk 0:02:59]} 4. b3 {[%clk 0:03:02]}  O-O {[%clk 0:02:59]} 5. Bb2 {[%clk 0:03:02]}  d6 {[%clk 0:02:56]} 6. c4 {[%clk 0:03:02]}  c5 {[%clk 0:02:52]} 7. Be2 {[%clk 0:03:00]}  cxd4 {[%clk 0:02:51]} 8. Nxd4 {[%clk 0:02:59]}  Nc6 {[%clk 0:02:52]} 9. O-O {[%clk 0:02:59]}  Bd7 {[%clk 0:02:47]} 10. Nd2 {[%clk 0:02:58]}  Nxd4 {[%clk 0:02:45]} 11. Bxd4 {[%clk 0:02:58]}  Bc6 {[%clk 0:02:45]} 12. Bf3 {[%clk 0:02:55]}  Qa5 {[%clk 0:02:43]} 13. Qe2 {[%clk 0:02:52]}  Rac8 {[%clk 0:02:31]} 14. Rfc1 {[%clk 0:02:45]}  Rfd8 {[%clk 0:02:24]} 15. h3 {[%clk 0:02:41]}  h5 {[%clk 0:02:17]} 16. a3 {[%clk 0:02:40]}  e5 {[%clk 0:02:12]} 17. Bc3 {[%clk 0:02:39]}  Qc7 {[%clk 0:02:12]} 18. Bxc6 {[%clk 0:02:39]}  bxc6 {[%clk 0:02:11]} 19. e4 {[%clk 0:02:36]}  Nd7 {[%clk 0:02:09]} 20. b4 {[%clk 0:02:33]}  Nf8 {[%clk 0:02:10]} 21. Nb3 {[%clk 0:02:28]}  Ne6 {[%clk 0:02:07]} 22. Rd1 {[%clk 0:02:28]}  d5 {[%clk 0:02:07]} 23. exd5 {[%clk 0:02:11]}  cxd5 {[%clk 0:02:06]} 24. c5 {[%clk 0:02:08]}  Nf4 {[%clk 0:02:04]} 25. Qf1 {[%clk 0:02:04]}  d4 {[%clk 0:02:03]} 26. Bd2 {[%clk 0:02:03]}  e4 {[%clk 0:02:04]} 27. Bxf4 {[%clk 0:01:59]}  Qxf4 {[%clk 0:02:03]} 28. g3 {[%clk 0:01:59]}  Qf5 {[%clk 0:01:59]} 29. Qg2 {[%clk 0:01:57]}  Qd5 {[%clk 0:01:52]} 30. Rab1 {[%clk 0:01:56]}  d3 {[%clk 0:01:45]} 31. Nd2 {[%clk 0:01:49]}  f5 {[%clk 0:01:43]} 32. Rdc1 {[%clk 0:01:35]}  Qa2 {[%clk 0:01:38]} 33. Rd1 {[%clk 0:01:27]}  Qxa3 {[%clk 0:01:26]} 34. Nxe4 {[%clk 0:01:17]}  fxe4 {[%clk 0:01:25]} 35. Qxe4 {[%clk 0:01:18]}  Kh7 {[%clk 0:01:21]} 36. c6 {[%clk 0:01:15]}  d2 {[%clk 0:01:15]} 37. b5 {[%clk 0:01:12]}  Qc3 {[%clk 0:01:10]} 38. Qe7 {[%clk 0:00:59]}  Re8 {[%clk 0:00:50]} 39. Qxa7 {[%clk 0:00:57]}  Re1+ {[%clk 0:00:50]} 40. Kg2 {[%clk 0:00:54]}  Rf8 {[%clk 0:00:49]} 41. Kh2 {[%clk 0:00:38]}  Rxd1 {[%clk 0:00:34]} 42. Rxd1 {[%clk 0:00:39]}  Qc2 {[%clk 0:00:34]} 0-1


[Site "https://www.chess.com"]

[Event "Titled Tuesday Blitz April 4 Early 2023"]
[White "Firouzja, Alireza"]
[Black "Mahdavi, Reza"]
[WhiteFideId "12573981"]
[BlackFideId "12595926"]
[WhiteElo "2904"]
[BlackElo "2357"]
[Result "1-0"]
[Round "04"]
[TimeControl "180+2"]
[Date "2023.04.04"]
[WhiteClock "0:00:41"]
[BlackClock "0:00:44"]

1. d4 {[%clk 0:02:56]}  Nf6 {[%clk 0:02:58]} 2. c4 {[%clk 0:02:55]}  g6 {[%clk 0:02:58]} 3. Nc3 {[%clk 0:02:55]}  Bg7 {[%clk 0:02:58]} 4. e4 {[%clk 0:02:55]}  d6 {[%clk 0:02:59]} 5. Nf3 {[%clk 0:02:55]}  O-O {[%clk 0:02:59]} 6. Be2 {[%clk 0:02:56]}  e5 {[%clk 0:02:46]} 7. O-O {[%clk 0:02:56]}  exd4 {[%clk 0:02:39]} 8. Nxd4 {[%clk 0:02:56]}  Re8 {[%clk 0:02:39]} 9. f3 {[%clk 0:02:54]}  c6 {[%clk 0:02:40]} 10. Nc2 {[%clk 0:02:51]}  Na6 {[%clk 0:02:37]} 11. Kh1 {[%clk 0:02:47]}  h6 {[%clk 0:02:35]} 12. Bf4 {[%clk 0:02:45]}  d5 {[%clk 0:02:34]} 13. cxd5 {[%clk 0:02:42]}  cxd5 {[%clk 0:02:35]} 14. exd5 {[%clk 0:02:40]}  Nh5 {[%clk 0:02:35]} 15. Be3 {[%clk 0:02:32]}  Nb4 {[%clk 0:02:22]} 16. Bf2 {[%clk 0:02:24]}  Bxc3 {[%clk 0:02:07]} 17. bxc3 {[%clk 0:02:24]}  Nxd5 {[%clk 0:02:08]} 18. Bc4 {[%clk 0:01:48]}  Be6 {[%clk 0:02:02]} 19. Bxd5 {[%clk 0:01:25]}  Qxd5 {[%clk 0:02:03]} 20. Bd4 {[%clk 0:01:24]}  b6 {[%clk 0:01:49]} 21. Qd2 {[%clk 0:01:19]}  Kh7 {[%clk 0:01:47]} 22. Ne3 {[%clk 0:01:19]}  Qg5 {[%clk 0:01:46]} 23. Qf2 {[%clk 0:01:09]}  f5 {[%clk 0:01:14]} 24. f4 {[%clk 0:01:04]}  Qe7 {[%clk 0:01:13]} 25. Rae1 {[%clk 0:01:04]}  Qf7 {[%clk 0:01:13]} 26. Re2 {[%clk 0:01:03]}  Re7 {[%clk 0:01:05]} 27. Rfe1 {[%clk 0:00:52]}  Rae8 {[%clk 0:01:05]} 28. Be5 {[%clk 0:00:44]}  Nf6 {[%clk 0:01:00]} 29. Qh4 {[%clk 0:00:44]}  Ne4 {[%clk 0:00:57]} 30. Ng4 {[%clk 0:00:44]}  fxg4 {[%clk 0:00:54]} 31. Rxe4 {[%clk 0:00:44]}  Bf5 {[%clk 0:00:44]} 32. Bg7 {[%clk 0:00:41]} 1-0


[Site "https://www.chess.com"]

[Event "Titled Tuesday Blitz April 4 Early 2023"]
[White "Alekseenko, Kirill"]
[Black "Oleksiyenko, Mykhaylo"]
[WhiteFideId "4135539"]
[BlackFideId "4152417"]
[WhiteElo "2683"]
[BlackElo "2551"]
[Result "1-0"]
[Round "04"]
[TimeControl "180+2"]
[Date "2023.04.04"]
[WhiteClock "0:00:15"]
[BlackClock "0:00:03"]

1. d4 {[%clk 0:03:00]}  d5 {[%clk 0:02:58]} 2. Nc3 {[%clk 0:03:01]}  Nf6 {[%clk 0:02:56]} 3. Bf4 {[%clk 0:03:01]}  e6 {[%clk 0:02:51]} 4. Nb5 {[%clk 0:03:01]}  Na6 {[%clk 0:02:50]} 5. e3 {[%clk 0:03:01]}  c6 {[%clk 0:02:49]} 6. Nc3 {[%clk 0:03:01]}  Nb8 {[%clk 0:02:45]} 7. Nf3 {[%clk 0:03:01]}  Bb4 {[%clk 0:02:37]} 8. Bd3 {[%clk 0:03:01]}  b6 {[%clk 0:02:35]} 9. O-O {[%clk 0:03:00]}  Bxc3 {[%clk 0:02:29]} 10. bxc3 {[%clk 0:03:00]}  Ba6 {[%clk 0:02:25]} 11. Ne5 {[%clk 0:02:31]}  Bxd3 {[%clk 0:02:16]} 12. cxd3 {[%clk 0:02:32]}  Nfd7 {[%clk 0:01:38]} 13. e4 {[%clk 0:01:58]}  O-O {[%clk 0:01:32]} 14. Re1 {[%clk 0:01:58]}  Nxe5 {[%clk 0:01:25]} 15. Bxe5 {[%clk 0:01:59]}  Nd7 {[%clk 0:01:24]} 16. Bg3 {[%clk 0:01:59]}  Re8 {[%clk 0:01:15]} 17. h3 {[%clk 0:01:57]}  h6 {[%clk 0:01:12]} 18. Qa4 {[%clk 0:01:49]}  Qc8 {[%clk 0:01:07]} 19. Rac1 {[%clk 0:01:36]}  Qb7 {[%clk 0:01:07]} 20. c4 {[%clk 0:01:23]}  Rac8 {[%clk 0:01:06]} 21. Bd6 {[%clk 0:01:03]}  b5 {[%clk 0:00:59]} 22. Qb3 {[%clk 0:00:58]}  Qa6 {[%clk 0:00:53]} 23. c5 {[%clk 0:00:44]}  f6 {[%clk 0:00:30]} 24. Ra1 {[%clk 0:00:43]}  Qb7 {[%clk 0:00:28]} 25. a4 {[%clk 0:00:42]}  a6 {[%clk 0:00:28]} 26. Re3 {[%clk 0:00:39]}  b4 {[%clk 0:00:27]} 27. a5 {[%clk 0:00:38]}  Qb5 {[%clk 0:00:25]} 28. Ra4 {[%clk 0:00:38]}  Kh8 {[%clk 0:00:21]} 29. Rxb4 {[%clk 0:00:38]}  Qxa5 {[%clk 0:00:21]} 30. Rb7 {[%clk 0:00:38]}  Qa1+ {[%clk 0:00:16]} 31. Kh2 {[%clk 0:00:38]}  Nf8 {[%clk 0:00:11]} 32. Rf7 {[%clk 0:00:28]}  Qxd4 {[%clk 0:00:10]} 33. Qb7 {[%clk 0:00:28]}  dxe4 {[%clk 0:00:09]} 34. Rxg7 {[%clk 0:00:17]}  exd3 {[%clk 0:00:03]} 35. Bxf8 {[%clk 0:00:16]}  Qf4+ {[%clk 0:00:03]} 36. Reg3 {[%clk 0:00:16]}  Rxf8 {[%clk 0:00:03]} 37. Rh7# {[%clk 0:00:15]} 1-0


[Site "https://www.chess.com"]

[Event "Titled Tuesday Blitz April 4 Early 2023"]
[White "Narayanan, Srinath"]
[Black "Van Foreest, Jorden"]
[WhiteFideId "5018420"]
[BlackFideId "1039784"]
[WhiteElo "2438"]
[BlackElo "2633"]
[Result "1-0"]
[Round "04"]
[TimeControl "180+2"]
[Date "2023.04.04"]
[WhiteClock "0:00:13"]
[BlackClock "0:00:13"]

1. Nf3 {[%clk 0:02:57]}  Nf6 {[%clk 0:02:59]} 2. c4 {[%clk 0:02:57]}  c6 {[%clk 0:02:57]} 3. e3 {[%clk 0:02:53]}  d5 {[%clk 0:02:57]} 4. Nc3 {[%clk 0:02:53]}  g6 {[%clk 0:02:48]} 5. d4 {[%clk 0:02:52]}  Bg7 {[%clk 0:02:49]} 6. h3 {[%clk 0:02:51]}  O-O {[%clk 0:02:49]} 7. Be2 {[%clk 0:02:51]}  dxc4 {[%clk 0:02:48]} 8. Bxc4 {[%clk 0:02:52]}  b5 {[%clk 0:02:48]} 9. Bd3 {[%clk 0:02:53]}  a6 {[%clk 0:02:45]} 10. O-O {[%clk 0:02:52]}  Bb7 {[%clk 0:02:42]} 11. a3 {[%clk 0:02:48]}  c5 {[%clk 0:02:33]} 12. dxc5 {[%clk 0:02:46]}  Nfd7 {[%clk 0:02:33]} 13. Be4 {[%clk 0:02:41]}  Nxc5 {[%clk 0:02:29]} 14. Bxb7 {[%clk 0:02:36]}  Nxb7 {[%clk 0:02:28]} 15. Qc2 {[%clk 0:02:35]}  Qc7 {[%clk 0:02:15]} 16. Bd2 {[%clk 0:02:32]}  Nd7 {[%clk 0:02:16]} 17. Rac1 {[%clk 0:02:32]}  Nb6 {[%clk 0:02:14]} 18. Nd5 {[%clk 0:02:20]}  Nxd5 {[%clk 0:01:54]} 19. Qxc7 {[%clk 0:02:19]}  Nxc7 {[%clk 0:01:55]} 20. Rxc7 {[%clk 0:02:20]}  Nd6 {[%clk 0:01:56]} 21. b3 {[%clk 0:02:15]}  Bf6 {[%clk 0:01:52]} 22. Bb4 {[%clk 0:02:04]}  Rfd8 {[%clk 0:01:52]} 23. g4 {[%clk 0:01:54]}  a5 {[%clk 0:01:48]} 24. Bc5 {[%clk 0:01:54]}  a4 {[%clk 0:01:40]} 25. bxa4 {[%clk 0:01:48]}  bxa4 {[%clk 0:01:41]} 26. g5 {[%clk 0:01:33]}  Bb2 {[%clk 0:01:40]} 27. Rb1 {[%clk 0:01:34]}  Nb5 {[%clk 0:01:09]} 28. Rb7 {[%clk 0:01:30]}  Bxa3 {[%clk 0:00:40]} 29. R7xb5 {[%clk 0:01:29]}  Bxc5 {[%clk 0:00:41]} 30. Rxc5 {[%clk 0:01:30]}  a3 {[%clk 0:00:42]} 31. Ra1 {[%clk 0:01:23]}  Ra4 {[%clk 0:00:42]} 32. Ra2 {[%clk 0:01:18]}  Kg7 {[%clk 0:00:41]} 33. Rc3 {[%clk 0:01:11]}  Rda8 {[%clk 0:00:41]} 34. Kg2 {[%clk 0:01:10]}  h6 {[%clk 0:00:42]} 35. h4 {[%clk 0:01:08]}  hxg5 {[%clk 0:00:42]} 36. hxg5 {[%clk 0:01:09]}  R8a7 {[%clk 0:00:41]} 37. Nd4 {[%clk 0:01:06]}  R4a5 {[%clk 0:00:39]} 38. Nf3 {[%clk 0:00:48]}  R7a6 {[%clk 0:00:35]} 39. Kf1 {[%clk 0:00:47]}  Ra7 {[%clk 0:00:35]} 40. Ke2 {[%clk 0:00:48]}  Ra8 {[%clk 0:00:36]} 41. Rc7 {[%clk 0:00:47]}  Kf8 {[%clk 0:00:36]} 42. Rb7 {[%clk 0:00:34]}  Rc8 {[%clk 0:00:33]} 43. Rb3 {[%clk 0:00:32]}  Rca8 {[%clk 0:00:33]} 44. e4 {[%clk 0:00:30]}  Ra4 {[%clk 0:00:33]} 45. Ke3 {[%clk 0:00:30]}  R8a5 {[%clk 0:00:34]} 46. Nd4 {[%clk 0:00:18]}  Rxg5 {[%clk 0:00:26]} 47. Raxa3 {[%clk 0:00:18]}  Rc4 {[%clk 0:00:27]} 48. Ra8+ {[%clk 0:00:16]}  Kg7 {[%clk 0:00:27]} 49. Ra7 {[%clk 0:00:17]}  Re5 {[%clk 0:00:22]} 50. f4 {[%clk 0:00:17]}  Rh5 {[%clk 0:00:22]} 51. Rxe7 {[%clk 0:00:16]}  Rh3+ {[%clk 0:00:22]} 52. Nf3 {[%clk 0:00:17]}  Rc2 {[%clk 0:00:23]} 53. e5 {[%clk 0:00:13]}  Rch2 {[%clk 0:00:21]} 54. Ke4 {[%clk 0:00:11]}  Re2+ {[%clk 0:00:20]} 55. Re3 {[%clk 0:00:11]}  Ra2 {[%clk 0:00:20]} 56. Rxf7+ {[%clk 0:00:09]}  Kh6 {[%clk 0:00:18]} 57. Rh7+ {[%clk 0:00:08]}  Kxh7 {[%clk 0:00:18]} 58. Ng5+ {[%clk 0:00:09]}  Kg7 {[%clk 0:00:19]} 59. Rxh3 {[%clk 0:00:09]}  Ra4+ {[%clk 0:00:19]} 60. Kf3 {[%clk 0:00:10]}  Ra1 {[%clk 0:00:19]} 61. Rh7+ {[%clk 0:00:09]}  Kg8 {[%clk 0:00:20]} 62. Rd7 {[%clk 0:00:10]}  Rf1+ {[%clk 0:00:20]} 63. Ke3 {[%clk 0:00:11]}  Re1+ {[%clk 0:00:20]} 64. Kf2 {[%clk 0:00:11]}  Ra1 {[%clk 0:00:20]} 65. e6 {[%clk 0:00:12]}  Kf8 {[%clk 0:00:19]} 66. Rf7+ {[%clk 0:00:11]}  Ke8 {[%clk 0:00:20]} 67. Rg7 {[%clk 0:00:12]}  Ra4 {[%clk 0:00:19]} 68. Kg3 {[%clk 0:00:12]}  Ra3+ {[%clk 0:00:19]} 69. Kg4 {[%clk 0:00:12]}  Ra1 {[%clk 0:00:16]} 70. Rxg6 {[%clk 0:00:12]}  Ra7 {[%clk 0:00:17]} 71. f5 {[%clk 0:00:12]}  Ra4+ {[%clk 0:00:14]} 72. Kh5 {[%clk 0:00:13]}  Ra1 {[%clk 0:00:13]} 73. Rg8+ {[%clk 0:00:12]}  Ke7 {[%clk 0:00:13]} 74. Kg6 {[%clk 0:00:13]} 1-0


[Site "https://www.chess.com"]

[Event "Titled Tuesday Blitz April 4 Early 2023"]
[White "Movahed, Sina"]
[Black "Samunenkov, Ihor"]
[WhiteFideId "42520835"]
[BlackFideId "14187086"]
[WhiteElo "2225"]
[BlackElo "2457"]
[Result "1-0"]
[Round "04"]
[TimeControl "180+2"]
[Date "2023.04.04"]
[WhiteClock "0:00:11"]
[BlackClock "0:00:01"]

1. Nf3 {[%clk 0:03:00]}  d5 {[%clk 0:02:59]} 2. g3 {[%clk 0:03:00]}  c5 {[%clk 0:02:59]} 3. Bg2 {[%clk 0:03:00]}  Nc6 {[%clk 0:03:00]} 4. d4 {[%clk 0:02:59]}  Nf6 {[%clk 0:02:59]} 5. O-O {[%clk 0:02:59]}  e6 {[%clk 0:03:00]} 6. c4 {[%clk 0:02:56]}  dxc4 {[%clk 0:03:01]} 7. Na3 {[%clk 0:02:48]}  cxd4 {[%clk 0:02:46]} 8. Nxc4 {[%clk 0:02:47]}  Bc5 {[%clk 0:02:38]} 9. a3 {[%clk 0:02:44]}  a5 {[%clk 0:02:32]} 10. Qc2 {[%clk 0:02:42]}  Qe7 {[%clk 0:02:10]} 11. Bg5 {[%clk 0:02:37]}  O-O {[%clk 0:02:08]} 12. Rac1 {[%clk 0:02:22]}  h6 {[%clk 0:01:56]} 13. Bd2 {[%clk 0:02:18]}  Nd7 {[%clk 0:01:39]} 14. e3 {[%clk 0:02:04]}  dxe3 {[%clk 0:01:15]} 15. Nxe3 {[%clk 0:02:03]}  b6 {[%clk 0:01:07]} 16. Rfe1 {[%clk 0:01:04]}  Bb7 {[%clk 0:01:01]} 17. Bc3 {[%clk 0:01:03]}  Qd8 {[%clk 0:00:43]} 18. Rcd1 {[%clk 0:01:02]}  Qc7 {[%clk 0:00:42]} 19. Ng4 {[%clk 0:00:53]}  Ne7 {[%clk 0:00:32]} 20. Qd2 {[%clk 0:00:45]}  Rad8 {[%clk 0:00:14]} 21. Bxg7 {[%clk 0:00:25]}  Nf5 {[%clk 0:00:08]} 22. Nxh6+ {[%clk 0:00:20]}  Kxg7 {[%clk 0:00:04]} 23. Nxf5+ {[%clk 0:00:20]}  exf5 {[%clk 0:00:04]} 24. Qg5+ {[%clk 0:00:20]}  Kh7 {[%clk 0:00:03]} 25. Qxf5+ {[%clk 0:00:21]}  Kg7 {[%clk 0:00:04]} 26. Qg4+ {[%clk 0:00:21]}  Kh6 {[%clk 0:00:02]} 27. Nh4 {[%clk 0:00:11]}  Rg8 {[%clk 0:00:01]} 28. Nf5+ {[%clk 0:00:10]}  Kh7 {[%clk 0:00:01]} 29. Qh5# {[%clk 0:00:11]} 1-0


[Site "https://www.chess.com"]

[Event "Titled Tuesday Blitz April 4 Early 2023"]
[White "Kozak, Antoni"]
[Black "Durarbayli, Vasif"]
[WhiteFideId "21832030"]
[BlackFideId "13402935"]
[WhiteElo "2470"]
[BlackElo "2551"]
[Result "1/2-1/2"]
[Round "04"]
[TimeControl "180+2"]
[Date "2023.04.04"]
[WhiteClock "0:00:43"]
[BlackClock "0:00:08"]

1. Nf3 {[%clk 0:03:00]}  c5 {[%clk 0:02:59]} 2. c4 {[%clk 0:03:00]}  Nf6 {[%clk 0:02:58]} 3. g3 {[%clk 0:03:00]}  b6 {[%clk 0:02:57]} 4. Bg2 {[%clk 0:03:00]}  Bb7 {[%clk 0:02:58]} 5. O-O {[%clk 0:03:01]}  e6 {[%clk 0:02:58]} 6. Nc3 {[%clk 0:02:59]}  Be7 {[%clk 0:02:58]} 7. d4 {[%clk 0:02:59]}  cxd4 {[%clk 0:02:58]} 8. Qxd4 {[%clk 0:03:00]}  d6 {[%clk 0:02:57]} 9. Rd1 {[%clk 0:02:59]}  a6 {[%clk 0:02:57]} 10. Bg5 {[%clk 0:02:58]}  Nbd7 {[%clk 0:02:57]} 11. Rac1 {[%clk 0:02:55]}  Rc8 {[%clk 0:02:56]} 12. b3 {[%clk 0:02:55]}  Qc7 {[%clk 0:02:55]} 13. Ne1 {[%clk 0:02:52]}  O-O {[%clk 0:02:38]} 14. Ne4 {[%clk 0:02:48]}  Bxe4 {[%clk 0:02:14]} 15. Bxe4 {[%clk 0:02:48]}  h6 {[%clk 0:02:14]} 16. Bxf6 {[%clk 0:02:46]}  Nxf6 {[%clk 0:02:12]} 17. Bg2 {[%clk 0:02:46]}  Rfd8 {[%clk 0:01:47]} 18. Nd3 {[%clk 0:02:46]}  Nd7 {[%clk 0:01:42]} 19. Nb4 {[%clk 0:02:44]}  Nb8 {[%clk 0:01:41]} 20. Qd2 {[%clk 0:02:37]}  Bg5 {[%clk 0:01:38]} 21. e3 {[%clk 0:02:38]}  Be7 {[%clk 0:01:34]} 22. h4 {[%clk 0:02:35]}  a5 {[%clk 0:01:15]} 23. Nc2 {[%clk 0:02:35]}  Bf6 {[%clk 0:01:09]} 24. Na3 {[%clk 0:02:34]}  Qe7 {[%clk 0:00:56]} 25. Nb5 {[%clk 0:02:32]}  Rc5 {[%clk 0:00:44]} 26. Qe2 {[%clk 0:02:22]}  Na6 {[%clk 0:00:44]} 27. Rc2 {[%clk 0:02:15]}  Nc7 {[%clk 0:00:42]} 28. Nd4 {[%clk 0:02:12]}  Qe8 {[%clk 0:00:37]} 29. Rcd2 {[%clk 0:02:09]}  d5 {[%clk 0:00:37]} 30. cxd5 {[%clk 0:01:52]}  Nxd5 {[%clk 0:00:38]} 31. Bxd5 {[%clk 0:01:50]}  Rcxd5 {[%clk 0:00:39]} 32. Nf3 {[%clk 0:01:49]}  Qc6 {[%clk 0:00:36]} 33. Rxd5 {[%clk 0:01:49]}  Rxd5 {[%clk 0:00:37]} 34. Rxd5 {[%clk 0:01:49]}  Qxd5 {[%clk 0:00:38]} 35. e4 {[%clk 0:01:50]}  Qc5 {[%clk 0:00:37]} 36. Kg2 {[%clk 0:01:49]}  b5 {[%clk 0:00:36]} 37. Qd2 {[%clk 0:01:49]}  a4 {[%clk 0:00:33]} 38. bxa4 {[%clk 0:01:49]}  bxa4 {[%clk 0:00:34]} 39. Qd7 {[%clk 0:01:48]}  Qb4 {[%clk 0:00:25]} 40. Qe8+ {[%clk 0:01:48]}  Kh7 {[%clk 0:00:25]} 41. e5 {[%clk 0:01:46]}  Be7 {[%clk 0:00:17]} 42. Qxf7 {[%clk 0:01:46]}  Bc5 {[%clk 0:00:18]} 43. Qxe6 {[%clk 0:01:40]}  Qe4 {[%clk 0:00:18]} 44. h5 {[%clk 0:01:38]}  Qc2 {[%clk 0:00:17]} 45. Qg6+ {[%clk 0:01:32]}  Qxg6 {[%clk 0:00:17]} 46. hxg6+ {[%clk 0:01:33]}  Kxg6 {[%clk 0:00:18]} 47. Nh4+ {[%clk 0:01:26]}  Kf7 {[%clk 0:00:18]} 48. f4 {[%clk 0:01:27]}  Ke6 {[%clk 0:00:16]} 49. Kf3 {[%clk 0:01:27]}  g5 {[%clk 0:00:16]} 50. Ng2 {[%clk 0:01:24]}  gxf4 {[%clk 0:00:10]} 51. gxf4 {[%clk 0:01:24]}  Kd5 {[%clk 0:00:09]} 52. Ne3+ {[%clk 0:01:22]}  Kd4 {[%clk 0:00:08]} 53. Nf5+ {[%clk 0:01:22]}  Kc3 {[%clk 0:00:08]} 54. e6 {[%clk 0:01:21]}  Kb2 {[%clk 0:00:09]} 55. e7 {[%clk 0:01:20]}  Bxe7 {[%clk 0:00:09]} 56. Nxe7 {[%clk 0:01:21]}  Kxa2 {[%clk 0:00:10]} 57. f5 {[%clk 0:01:14]}  a3 {[%clk 0:00:10]} 58. f6 {[%clk 0:01:15]}  Kb3 {[%clk 0:00:11]} 59. f7 {[%clk 0:01:15]}  a2 {[%clk 0:00:11]} 60. f8=Q {[%clk 0:01:16]}  a1=Q {[%clk 0:00:12]} 61. Qb8+ {[%clk 0:01:17]}  Kc2 {[%clk 0:00:10]} 62. Nd5 {[%clk 0:01:16]}  Qa3+ {[%clk 0:00:10]} 63. Ne3+ {[%clk 0:01:16]}  Kd3 {[%clk 0:00:05]} 64. Qb5+ {[%clk 0:01:14]}  Kd2 {[%clk 0:00:05]} 65. Qd5+ {[%clk 0:01:08]}  Qd3 {[%clk 0:00:03]} 66. Qa2+ {[%clk 0:01:08]}  Kc3 {[%clk 0:00:03]} 67. Qa1+ {[%clk 0:01:05]}  Kb3 {[%clk 0:00:02]} 68. Qe5 {[%clk 0:01:03]}  Ka4 {[%clk 0:00:02]} 69. Qb8 {[%clk 0:01:02]}  Ka5 {[%clk 0:00:02]} 70. Qa7+ {[%clk 0:01:02]}  Kb5 {[%clk 0:00:02]} 71. Qb7+ {[%clk 0:01:02]}  Ka5 {[%clk 0:00:02]} 72. Qa7+ {[%clk 0:01:02]}  Kb5 {[%clk 0:00:03]} 73. Kf4 {[%clk 0:01:02]}  Qd6+ {[%clk 0:00:02]} 74. Ke4 {[%clk 0:01:02]}  Qe6+ {[%clk 0:00:03]} 75. Kd3 {[%clk 0:01:00]}  Qb3+ {[%clk 0:00:03]} 76. Kd2 {[%clk 0:01:00]}  Qb4+ {[%clk 0:00:03]} 77. Ke2 {[%clk 0:00:58]}  Qb2+ {[%clk 0:00:04]} 78. Kf1 {[%clk 0:00:56]}  Qf6+ {[%clk 0:00:04]} 79. Ke1 {[%clk 0:00:57]}  Qc3+ {[%clk 0:00:04]} 80. Kf2 {[%clk 0:00:56]}  Qb2+ {[%clk 0:00:04]} 81. Kg1 {[%clk 0:00:56]}  Qc1+ {[%clk 0:00:04]} 82. Kg2 {[%clk 0:00:55]}  Qc6+ {[%clk 0:00:03]} 83. Kg3 {[%clk 0:00:51]}  Qd6+ {[%clk 0:00:03]} 84. Kf3 {[%clk 0:00:47]}  Qb6 {[%clk 0:00:04]} 85. Qa2 {[%clk 0:00:43]}  Qc6+ {[%clk 0:00:04]} 86. Nd5 {[%clk 0:00:43]}  Kc5 {[%clk 0:00:04]} 87. Ke4 {[%clk 0:00:43]}  Qe6+ {[%clk 0:00:05]} 88. Kf4 {[%clk 0:00:43]}  Qxd5 {[%clk 0:00:06]} 89. Qa5+ {[%clk 0:00:43]}  Kc6 {[%clk 0:00:06]} 90. Qa8+ {[%clk 0:00:43]}  Kc5 {[%clk 0:00:06]} 91. Qa5+ {[%clk 0:00:43]}  Kc6 {[%clk 0:00:07]} 92. Qa8+ {[%clk 0:00:43]}  Kc5 {[%clk 0:00:07]} 93. Qf8+ {[%clk 0:00:43]}  Kc4 {[%clk 0:00:08]} 94. Qc8+ {[%clk 0:00:41]}  Kd3 {[%clk 0:00:07]} 95. Qf5+ {[%clk 0:00:41]}  Qxf5+ {[%clk 0:00:07]} 96. Kxf5 {[%clk 0:00:42]}  Ke3 {[%clk 0:00:08]} 97. Kg6 {[%clk 0:00:42]}  Kf4 {[%clk 0:00:08]} 98. Kxh6 {[%clk 0:00:43]} 1/2-1/2


[Site "https://www.chess.com"]

[Event "Titled Tuesday Blitz April 4 Early 2023"]
[White "Zakhartsov, Vladimir"]
[Black "Seemann, Jakub"]
[WhiteFideId "4145097"]
[BlackFideId "21874697"]
[WhiteElo "2497"]
[BlackElo "2364"]
[Result "1/2-1/2"]
[Round "04"]
[TimeControl "180+2"]
[Date "2023.04.04"]
[WhiteClock "0:00:05"]
[BlackClock "0:00:04"]

1. e4 {[%clk 0:02:51]}  c6 {[%clk 0:02:58]} 2. d4 {[%clk 0:02:48]}  d5 {[%clk 0:02:58]} 3. Nc3 {[%clk 0:02:49]}  dxe4 {[%clk 0:02:58]} 4. Nxe4 {[%clk 0:02:50]}  Nf6 {[%clk 0:02:59]} 5. Nxf6+ {[%clk 0:02:50]}  exf6 {[%clk 0:03:00]} 6. c3 {[%clk 0:02:49]}  Bd6 {[%clk 0:03:00]} 7. Bd3 {[%clk 0:02:49]}  O-O {[%clk 0:03:00]} 8. Qc2 {[%clk 0:02:49]}  Re8+ {[%clk 0:03:01]} 9. Ne2 {[%clk 0:02:49]}  h5 {[%clk 0:03:01]} 10. Bd2 {[%clk 0:02:49]}  Nd7 {[%clk 0:03:00]} 11. O-O-O {[%clk 0:02:49]}  Nf8 {[%clk 0:03:00]} 12. h3 {[%clk 0:02:49]}  Be6 {[%clk 0:02:59]} 13. Kb1 {[%clk 0:02:47]}  b5 {[%clk 0:02:58]} 14. Nf4 {[%clk 0:02:45]}  Bxf4 {[%clk 0:02:57]} 15. Bxf4 {[%clk 0:02:44]}  a5 {[%clk 0:02:57]} 16. g4 {[%clk 0:02:43]}  a4 {[%clk 0:02:56]} 17. Be4 {[%clk 0:02:17]}  Bd5 {[%clk 0:02:47]} 18. f3 {[%clk 0:02:15]}  b4 {[%clk 0:02:04]} 19. cxb4 {[%clk 0:02:09]}  a3 {[%clk 0:02:00]} 20. b3 {[%clk 0:02:05]}  Qb6 {[%clk 0:01:57]} 21. gxh5 {[%clk 0:01:51]}  Ne6 {[%clk 0:01:41]} 22. Be3 {[%clk 0:01:48]}  Qxb4 {[%clk 0:01:41]} 23. Rhg1 {[%clk 0:01:44]}  Rab8 {[%clk 0:01:33]} 24. h6 {[%clk 0:01:39]}  Bxb3 {[%clk 0:01:25]} 25. axb3 {[%clk 0:01:03]}  Qxb3+ {[%clk 0:01:26]} 26. Qxb3 {[%clk 0:00:47]}  Rxb3+ {[%clk 0:01:27]} 27. Ka2 {[%clk 0:00:47]}  Rxe3 {[%clk 0:01:23]} 28. hxg7 {[%clk 0:00:48]}  Nxg7 {[%clk 0:01:03]} 29. Bxc6 {[%clk 0:00:44]}  Rb8 {[%clk 0:00:55]} 30. Rd2 {[%clk 0:00:42]}  Kf8 {[%clk 0:00:55]} 31. Rdg2 {[%clk 0:00:39]}  Rb6 {[%clk 0:00:40]} 32. d5 {[%clk 0:00:34]}  Nf5 {[%clk 0:00:36]} 33. Rg8+ {[%clk 0:00:31]}  Ke7 {[%clk 0:00:37]} 34. Re8+ {[%clk 0:00:32]}  Kd6 {[%clk 0:00:37]} 35. Rxe3 {[%clk 0:00:32]}  Nxe3 {[%clk 0:00:38]} 36. Kxa3 {[%clk 0:00:26]}  Nc2+ {[%clk 0:00:18]} 37. Ka4 {[%clk 0:00:21]}  Nd4 {[%clk 0:00:12]} 38. h4 {[%clk 0:00:18]}  Nxf3 {[%clk 0:00:10]} 39. Rh1 {[%clk 0:00:16]}  Rb8 {[%clk 0:00:08]} 40. h5 {[%clk 0:00:17]}  Rh8 {[%clk 0:00:09]} 41. h6 {[%clk 0:00:17]}  Ne5 {[%clk 0:00:09]} 42. Kb5 {[%clk 0:00:16]}  Nxc6 {[%clk 0:00:07]} 43. dxc6 {[%clk 0:00:16]}  Rb8+ {[%clk 0:00:08]} 44. Kc4 {[%clk 0:00:14]}  Kxc6 {[%clk 0:00:08]} 45. Rf1 {[%clk 0:00:12]}  Kd6 {[%clk 0:00:07]} 46. Rxf6+ {[%clk 0:00:12]}  Ke7 {[%clk 0:00:07]} 47. Ra6 {[%clk 0:00:12]}  Rh8 {[%clk 0:00:05]} 48. Kd5 {[%clk 0:00:12]}  Rh7 {[%clk 0:00:04]} 49. Ke5 {[%clk 0:00:12]}  f6+ {[%clk 0:00:02]} 50. Rxf6 {[%clk 0:00:10]}  Ke8 {[%clk 0:00:01]} 51. Re6+ {[%clk 0:00:06]}  Kf8 {[%clk 0:00:01]} 52. Rf6+ {[%clk 0:00:05]}  Kg8 {[%clk 0:00:01]} 53. Rg6+ {[%clk 0:00:04]}  Kh8 {[%clk 0:00:01]} 54. Ra6 {[%clk 0:00:03]}  Rf7 {[%clk 0:00:02]} 55. Re6 {[%clk 0:00:03]}  Rf1 {[%clk 0:00:02]} 56. Rg6 {[%clk 0:00:02]}  Kh7 {[%clk 0:00:03]} 57. Rd6 {[%clk 0:00:03]}  Rh1 {[%clk 0:00:03]} 58. Kf5 {[%clk 0:00:03]}  Rxh6 {[%clk 0:00:04]} 59. Rd7+ {[%clk 0:00:04]}  Kg8 {[%clk 0:00:04]} 60. Rd5 {[%clk 0:00:04]}  Ra6 {[%clk 0:00:05]} 61. Ke5 {[%clk 0:00:04]}  Kf8 {[%clk 0:00:05]} 62. Rd6 {[%clk 0:00:05]}  Rxd6 {[%clk 0:00:04]} 63. Kxd6 {[%clk 0:00:05]} 1/2-1/2


[Site "https://www.chess.com"]